bitfinex/quotes_BTCUSD_20250110
["timestamp","ask_amount","ask_price","bid_price","bid_amount"]
[1736486601045,0.03808584,93908.0,93893.0,0.33117425]
[1736486601278,0.03808584,93908.0,93893.0,0.32517425]
[1736486601492,0.03808584,93908.0,93893.0,0.32317425]
[1736486601697,0.03808584,93908.0,93898.0,0.001]
[1736486601895,0.03808584,93908.0,93893.0,0.32317425]
[1736486602202,0.15,93903.0,93893.0,0.32317425]
[1736486602643,0.15,93901.0,93893.0,0.32317425]
[1736486603026,0.01988143,93900.0,93893.0,0.32317425]
[1736486603748,0.01988143,93900.0,93895.0,0.0773]
[1736486603953,0.01988143,93900.0,93896.0,0.00106488]
[1736486604121,0.01988143,93899.0,93896.0,0.00106488]
[1736486604952,0.01988143,93898.0,93895.0,0.08036488]
[1736486605097,0.01988143,93898.0,93895.0,0.07836488]
[1736486605509,0.01988143,93898.0,93896.0,0.006]
[1736486605702,0.01988143,93898.0,93895.0,0.07936488]
[1736486606234,0.17200185,93909.0,93895.0,0.07936488]
[1736486606235,0.01988143,93897.0,93895.0,0.07936488]
[1736486606608,0.01988143,93897.0,93895.0,0.0783]
[1736486607106,0.01988143,93897.0,93895.0,0.0773]
[1736486607334,0.01988143,93896.0,93895.0,0.0793]
[1736486607801,0.01988143,93896.0,93895.0,0.0833]
[1736486608007,0.01988143,93896.0,93895.0,0.0773]
[1736486608211,0.01988143,93896.0,93895.0,0.0793]
[1736486608516,0.01988143,93896.0,93895.0,0.0843]
[1736486608638,0.01988143,93896.0,93895.0,0.0773]
[1736486608840,0.01988143,93896.0,93895.0,0.0863]
[1736486609266,0.01988143,93896.0,93895.0,0.0793]
[1736486609441,0.02088143,93896.0,93895.0,0.0793]
[1736486610049,0.02088143,93896.0,93895.0,0.0773]
[1736486610866,0.01988143,93896.0,93895.0,0.0773]
[1736486611078,0.01988143,93896.0,93895.0,0.0823]
[1736486611255,0.01988143,93896.0,93895.0,0.0843]
[1736486613816,0.01923266,93898.0,93895.0,0.0843]
[1736486614253,0.15,93902.0,93895.0,0.0843]
[1736486614836,0.15,93902.0,93895.0,0.0773]
[1736486614989,0.01997942,93901.0,93895.0,0.0773]
[1736486615202,0.01997942,93901.0,93895.0,0.0823]
[1736486615400,0.01997942,93901.0,93895.0,0.0783]
[1736486615899,0.01997942,93901.0,93895.0,0.0803]
[1736486616105,0.01997942,93900.0,93895.0,0.0803]
[1736486616306,0.01997942,93900.0,93895.0,0.0793]
[1736486617064,0.01997942,93899.0,93895.0,0.0773]
[1736486617466,0.01997942,93899.0,93895.0,0.0793]
[1736486617673,0.01997942,93899.0,93895.0,0.0783]
[1736486618105,0.01997942,93898.0,93895.0,0.0803]
[1736486618247,0.01997942,93898.0,93895.0,0.0783]
[1736486618654,0.01997942,93898.0,93895.0,0.0813]
[1736486618857,0.01997942,93897.0,93895.0,0.0783]
[1736486620145,0.01997942,93897.0,93895.0,0.0773]
[1736486620322,0.01997942,93897.0,93895.0,0.0813]
[1736486620525,0.01997942,93897.0,93895.0,0.0783]
[1736486620683,0.16889959,93904.0,93895.0,0.0783]
[1736486620914,0.16889959,93904.0,93895.0,0.0813]
[1736486621299,0.16889959,93904.0,93895.0,0.0823]
[1736486621703,0.16889959,93904.0,93895.0,0.0783]
[1736486621906,0.16889959,93904.0,93895.0,0.0773]
[1736486622107,0.16889959,93904.0,93895.0,0.0783]
[1736486623482,0.16889959,93904.0,93895.0,0.0773]
[1736486623884,0.16889959,93904.0,93895.0,0.0783]
[1736486624757,0.01889959,93904.0,93896.0,0.00106492]
[1736486624968,0.212935,93925.0,93909.0,0.0776]
[1736486625172,0.212946,93921.0,93909.0,0.0776]
[1736486625396,0.212978,93907.0,93899.0,0.0462]
[1736486626217,0.425956,93907.0,93899.0,0.0462]
[1736486626419,0.212978,93907.0,93899.0,0.0462]
[1736486626852,0.212981,93905.0,93899.0,0.0462]
[1736486627252,0.425962,93905.0,93899.0,0.0462]
[1736486627894,0.212981,93905.0,93899.0,0.0462]
[1736486628148,0.213981,93905.0,93899.0,0.0462]
[1736486630782,0.001,93905.0,93899.0,0.0462]
[1736486631145,0.01994119,93905.0,93900.0,0.04469743]
[1736486631341,0.15,93907.0,93900.0,0.04469743]
[1736486631551,0.15,93907.0,93899.0,0.0462]
[1736486631751,0.15,93907.0,93899.0,0.0472]
[1736486633432,0.15,93907.0,93899.0,0.0462]
[1736486633632,0.16962188,93907.0,93899.0,0.0462]
[1736486633834,0.001,93905.0,93899.0,0.0462]
[1736486634052,0.16962188,93907.0,93899.0,0.0462]
[1736486634529,0.17162188,93907.0,93899.0,0.0462]
[1736486634728,0.16962188,93907.0,93899.0,0.0462]
[1736486634904,0.17062188,93907.0,93899.0,0.0462]
[1736486635103,0.001,93905.0,93899.0,0.0462]
[1736486635330,0.17062188,93907.0,93899.0,0.0462]
[1736486635706,0.212978,93906.0,93899.0,0.0462]
[1736486637370,0.212978,93906.0,93899.0,0.0472]
[1736486639240,0.09991427,93907.0,93899.0,0.0472]
[1736486639511,0.01962188,93907.0,93899.0,0.0472]
[1736486639759,0.01962188,93907.0,93893.0,0.00057425]
[1736486639760,0.212981,93905.0,93893.0,0.00057425]
[1736486639979,0.212978,93906.0,93893.0,0.00057425]
[1736486639980,1.194574,93904.0,93893.0,0.00057425]
[1736486640185,0.213006,93894.0,93893.0,0.00057425]
[1736486641026,0.21400607,93894.0,93893.0,0.00057425]
[1736486641604,0.36731633,93894.0,93893.0,0.00057425]
[1736486641762,0.36531633,93894.0,93893.0,0.00057425]
[1736486643223,0.36600607,93894.0,93893.0,0.00057425]
[1736486643425,0.365006,93894.0,93893.0,0.00057425]
[1736486643591,0.367006,93894.0,93893.0,0.00057425]
[1736486643985,0.365006,93894.0,93893.0,0.00057425]
[1736486644225,0.367006,93894.0,93893.0,0.00057425]
[1736486644595,0.365006,93894.0,93893.0,0.00057425]
[1736486644831,0.367006,93894.0,93893.0,0.00057425]
[1736486645888,0.365006,93894.0,93893.0,0.00057425]
[1736486646090,0.367006,93894.0,93893.0,0.00057425]
[1736486646652,0.38100078,93894.0,93893.0,0.00057425]
[1736486646881,0.38200078,93894.0,93893.0,0.00057425]
[1736486647289,0.38400078,93894.0,93893.0,0.00057425]
[1736486647789,0.38200078,93894.0,93893.0,0.00057425]
[1736486648173,0.38300078,93894.0,93893.0,0.00057425]
[1736486648961,0.01999478,93894.0,93893.0,0.07987425]
[1736486649090,0.01999478,93894.0,93893.0,0.1328402]
[1736486649960,0.01999478,93894.0,93893.0,0.12677425]
[1736486651713,0.002,93894.0,93893.0,0.12677425]
[1736486652480,0.001,93894.0,93893.0,0.12677425]
[1736486653337,0.01740476,93898.0,93893.0,0.12677425]
[1736486653690,0.212978,93907.0,93893.0,0.12777425]
[1736486653896,0.23057736,93907.0,93893.0,0.12677425]
[1736486654320,0.23057736,93907.0,93893.0,0.13177425]
[1736486654519,0.23057736,93907.0,93893.0,0.12677425]
[1736486654927,0.23157736,93907.0,93893.0,0.12677425]
[1736486655806,0.23157736,93907.0,93893.0,0.12877425]
[1736486656180,0.15,93906.0,93893.0,0.12677425]
[1736486661397,0.15,93904.0,93893.0,0.12677425]
[1736486662545,0.15,93906.0,93893.0,0.12677425]
[1736486662857,0.15,93906.0,93894.0,0.02230183]
[1736486663071,0.15,93906.0,93895.0,0.0824]
[1736486665555,0.00131146,93924.0,93895.0,0.0824]
[1736486666585,0.212975,93908.0,93895.0,0.0824]
[1736486667504,0.212975,93908.0,93895.0,0.0834]
[1736486667912,0.212975,93908.0,93895.0,0.0824]
[1736486668419,0.213975,93908.0,93895.0,0.0824]
[1736486668769,0.214975,93908.0,93895.0,0.0824]
[1736486669814,0.002,93908.0,93895.0,0.295402]
[1736486669974,0.002,93908.0,93895.0,0.33531959]
[1736486670182,0.214976,93908.0,93895.0,0.12231759]
[1736486670429,0.214976,93908.0,93895.0,0.0824]
[1736486671697,0.23143047,93908.0,93895.0,0.0824]
[1736486673978,0.23043047,93908.0,93895.0,0.0824]
[1736486674553,0.22943047,93908.0,93895.0,0.0824]
[1736486674767,0.15,93907.0,93895.0,0.0824]
[1736486676109,0.15,93907.0,93895.0,0.0834]
[1736486676512,0.15,93907.0,93895.0,0.0824]
[1736486677101,0.22943047,93908.0,93895.0,0.0824]
[1736486677715,0.22943047,93908.0,93895.0,0.0834]
[1736486678187,0.22943047,93908.0,93895.0,0.0824]
[1736486678417,0.22943047,93908.0,93895.0,0.0834]
[1736486680423,0.15,93907.0,93895.0,0.296402]
[1736486680824,0.15,93907.0,93896.0,0.0801]
[1736486681796,0.15,93911.0,93896.0,0.0801]
[1736486681974,0.15,93909.0,93896.0,0.0811]
[1736486682808,0.15,93909.0,93896.0,0.0801]
[1736486683010,0.15,93911.0,93896.0,0.0801]
[1736486683223,0.15,93909.0,93898.0,0.0801]
[1736486684205,0.15,93907.0,93898.0,0.0801]
[1736486684796,0.15,93907.0,93898.0,0.0811]
[1736486684992,0.15,93907.0,93898.0,0.0801]
[1736486685415,0.15,93907.0,93898.0,0.0811]
[1736486687597,0.15,93909.0,93898.0,0.0811]
[1736486688051,0.15,93907.0,93898.0,0.0811]
[1736486688662,0.15,93907.0,93898.0,0.0801]
[1736486689133,0.15,93909.0,93898.0,0.0811]
[1736486689280,0.15,93909.0,93898.0,0.0801]
[1736486690528,0.15,93907.0,93898.0,0.0801]
[1736486691245,0.15,93907.0,93898.0,0.0811]
[1736486691591,0.15,93909.0,93898.0,0.0811]
[1736486692494,0.15,93909.0,93898.0,0.0801]
[1736486694387,0.15,93909.0,93898.0,0.0811]
[1736486695476,0.15,93907.0,93898.0,0.0811]
[1736486696892,0.15,93907.0,93898.0,0.0801]
[1736486697825,0.15,93907.0,93898.0,0.0811]
[1736486698551,0.15,93907.0,93898.0,0.0801]
[1736486698911,0.15,93907.0,93898.0,0.0811]
[1736486699332,0.212974,93908.0,93898.0,0.0811]
[1736486699333,0.15,93901.0,93898.0,0.001]
[1736486699567,0.15,93899.0,93898.0,0.001]
[1736486699960,0.15100021,93899.0,93898.0,0.001]
[1736486700143,0.15100021,93899.0,93893.0,0.00057425]
[1736486700389,0.2275,93901.0,93893.0,0.00057425]
[1736486700584,0.15,93895.0,93893.0,0.00057425]
[1736486700813,0.15,93892.0,93890.0,0.03755332]
[1736486701104,0.363012,93891.0,93890.0,0.03760221]
[1736486701302,0.36532426,93891.0,93890.0,0.03760221]
[1736486702363,0.36732426,93891.0,93890.0,0.03760221]
[1736486704150,0.36832426,93891.0,93890.0,0.03760221]
[1736486704350,0.36632426,93891.0,93890.0,0.03760221]
[1736486704614,0.36732426,93891.0,93890.0,0.03760221]
[1736486705034,0.36932426,93891.0,93890.0,0.03760221]
[1736486705237,0.36532426,93891.0,93890.0,0.03760221]
[1736486705469,0.36732426,93891.0,93890.0,0.03760221]
[1736486705644,0.36832426,93891.0,93890.0,0.03760221]
[1736486705850,0.36832426,93891.0,93887.0,8.52e-05]
[1736486705851,0.15,93890.0,93887.0,8.52e-05]
[1736486706058,0.363056,93872.0,93860.0,8.52e-05]
[1736486706300,0.363056,93872.0,93871.0,0.00013399]
[1736486707750,0.364056,93872.0,93871.0,0.00113399]
[1736486708173,0.363056,93872.0,93871.0,0.00013399]
[1736486708797,0.366056,93872.0,93871.0,0.00013399]
[1736486709194,0.365056,93872.0,93871.0,0.00013399]
[1736486709418,0.38578755,93872.0,93871.0,0.00013399]
[1736486709733,0.38678755,93872.0,93871.0,0.00013399]
[1736486710094,0.38478755,93872.0,93871.0,0.00013399]
[1736486710514,0.38678755,93872.0,93871.0,0.00013399]
[1736486711059,0.38578755,93872.0,93871.0,0.00013399]
[1736486711276,0.38378755,93872.0,93871.0,0.00013399]
[1736486711416,0.38478755,93872.0,93871.0,0.00013399]
[1736486711631,0.38678755,93872.0,93871.0,0.00013399]
[1736486711845,0.38378755,93872.0,93871.0,0.00013399]
[1736486712249,0.38478755,93872.0,93871.0,0.00013399]
[1736486712446,0.17173155,93872.0,93871.0,0.12263399]
[1736486712660,0.17073155,93872.0,93871.0,0.12263399]
[1736486713285,0.17373155,93872.0,93871.0,0.12263399]
[1736486713559,0.17073155,93872.0,93871.0,0.04543399]
[1736486713968,0.17073155,93872.0,93871.0,0.04643399]
[1736486714175,0.17173155,93872.0,93871.0,0.04543399]
[1736486714477,0.17173155,93872.0,93871.0,0.04643399]
[1736486714705,0.17073155,93872.0,93871.0,0.04643399]
[1736486714895,0.17073155,93872.0,93871.0,0.04543399]
[1736486715099,0.17073155,93872.0,93871.0,0.04643399]
[1736486715663,0.17173155,93872.0,93871.0,0.04643399]
[1736486715885,0.17173155,93872.0,93871.0,0.00113399]
[1736486716914,0.17173155,93872.0,93871.0,0.00013399]
[1736486717112,0.17373155,93872.0,93871.0,0.00013399]
[1736486717452,0.17073155,93872.0,93871.0,0.00013399]
[1736486717834,0.17373155,93872.0,93871.0,0.00013399]
[1736486718030,0.17173155,93872.0,93871.0,0.00013399]
[1736486718236,0.17073155,93872.0,93871.0,0.00013399]
[1736486718437,0.17173155,93872.0,93871.0,0.00013399]
[1736486718656,0.17273155,93872.0,93871.0,0.00013399]
[1736486720450,0.17504565,93872.0,93871.0,0.00013399]
[1736486721228,0.17304565,93872.0,93871.0,0.00013399]
[1736486721439,0.17404565,93872.0,93871.0,0.00013399]
[1736486721639,0.17504565,93872.0,93871.0,0.00013399]
[1736486722041,0.17404565,93872.0,93871.0,0.00013399]
[1736486722411,0.17404565,93872.0,93860.0,8.52e-05]
[1736486722412,0.36264993,93865.0,93860.0,8.52e-05]
[1736486722614,0.36264993,93865.0,93864.0,0.00013411]
[1736486722819,0.36396241,93865.0,93864.0,0.00013411]
[1736486723381,0.44266241,93865.0,93864.0,0.00013411]
[1736486723528,0.44966241,93865.0,93864.0,0.00113411]
[1736486723740,0.44266241,93865.0,93864.0,0.00013411]
[1736486724170,0.44966241,93865.0,93864.0,0.00113411]
[1736486724368,0.44966241,93865.0,93864.0,0.00013411]
[1736486724596,0.37096241,93865.0,93864.0,0.00013411]
[1736486724805,0.38096241,93865.0,93864.0,0.00113411]
[1736486725005,0.36696241,93865.0,93864.0,0.00013411]
[1736486725407,0.36396241,93865.0,93864.0,0.00013411]
[1736486726482,0.36396241,93865.0,93864.0,0.00113411]
[1736486726483,0.37096241,93865.0,93864.0,0.00113411]
[1736486726671,0.37096241,93865.0,93864.0,0.00013411]
[1736486726849,0.38140241,93865.0,93864.0,0.00013411]
[1736486727054,0.38708993,93865.0,93864.0,0.00113411]
[1736486727436,0.38408993,93865.0,93864.0,0.00113411]
[1736486727665,0.38608993,93865.0,93864.0,0.00113411]
[1736486728648,0.91085373,93865.0,93864.0,0.00113411]
[1736486728860,1.24992973,93865.0,93864.0,0.00113411]
[1736486729067,1.12866073,93865.0,93864.0,0.00113411]
[1736486729487,1.11077473,93865.0,93864.0,0.00113411]
[1736486730484,1.04121473,93865.0,93864.0,0.00113411]
[1736486731434,1.03377473,93865.0,93864.0,0.00113411]
[1736486731659,1.06115851,93865.0,93864.0,0.00113411]
[1736486732261,1.05371851,93865.0,93864.0,0.00113411]
[1736486732470,1.06115851,93865.0,93864.0,0.00113411]
[1736486736299,1.14345851,93865.0,93864.0,0.00113411]
[1736486738626,1.14477106,93865.0,93864.0,0.00113411]
[1736486738981,1.16777106,93865.0,93864.0,0.00113411]
[1736486740385,0.173,93864.0,93857.0,4.521e-05]
[1736486740593,0.15,93857.0,93856.0,2.821e-05]
[1736486740915,0.15,93857.0,93856.0,0.00017501]
[1736486740916,0.15231553,93857.0,93856.0,0.00017501]
[1736486741121,0.506045,93857.0,93856.0,0.00017501]
[1736486741748,0.52598878,93857.0,93856.0,0.00017501]
[1736486742310,0.43898978,93857.0,93856.0,0.00017501]
[1736486742519,0.01994378,93857.0,93856.0,0.00017501]
[1736486742699,0.01994378,93857.0,93856.0,0.07667501]
[1736486743506,0.02294378,93857.0,93856.0,0.07667501]
[1736486744124,0.0418766,93857.0,93856.0,0.07667501]
[1736486744876,0.0418766,93857.0,93856.0,0.12237501]
[1736486745430,0.02193282,93857.0,93856.0,0.12237501]
[1736486745627,0.01893282,93857.0,93856.0,0.12237501]
[1736486745837,0.02093282,93857.0,93856.0,0.12237501]
[1736486746466,0.01993282,93857.0,93856.0,0.12237501]
[1736486749209,0.01793282,93857.0,93856.0,0.12237501]
[1736486749618,0.002,93857.0,93856.0,0.12237501]
[1736486749952,0.213087,93858.0,93856.0,0.12237501]
[1736486750364,0.23186884,93858.0,93856.0,0.12237501]
[1736486750539,0.151,93857.0,93856.0,0.12237501]
[1736486750987,0.15,93857.0,93856.0,0.12237501]
[1736486753161,0.151,93857.0,93856.0,0.12237501]
[1736486758148,0.001,93857.0,93856.0,0.12237501]
[1736486759323,0.01878184,93858.0,93856.0,0.12237501]
[1736486759523,0.15,93862.0,93856.0,0.12237501]
[1736486759727,0.15,93862.0,93856.0,0.12337501]
[1736486760236,0.15,93862.0,93856.0,0.12437501]
[1736486760418,0.15,93862.0,93856.0,0.12337501]
[1736486760622,0.213081,93861.0,93856.0,0.12337501]
[1736486760834,0.02055281,93862.0,93858.0,0.0451]
[1736486761039,0.02055281,93862.0,93860.0,0.0451]
[1736486762111,0.01855281,93862.0,93860.0,0.0451]
[1736486762314,0.001,93861.0,93860.0,0.1276]
[1736486762741,0.15,93870.0,93861.0,0.0825]
[1736486762945,0.15,93870.0,93863.0,0.0796]
[1736486763144,0.01867035,93871.0,93863.0,0.0796]
[1736486763349,0.15,93874.0,93863.0,0.0796]
[1736486763547,0.15,93872.0,93863.0,0.0796]
[1736486764311,0.213062,93869.0,93863.0,0.0796]
[1736486764524,0.363074,93864.0,93863.0,0.0796]
[1736486765753,0.365074,93864.0,93863.0,0.0796]
[1736486766165,0.363074,93864.0,93863.0,0.0796]
[1736486766370,0.365074,93864.0,93863.0,0.0796]
[1736486766775,0.364074,93864.0,93863.0,0.0796]
[1736486766997,0.153,93864.0,93863.0,0.0796]
[1736486767823,0.17163385,93864.0,93863.0,0.0796]
[1736486768407,0.16963385,93864.0,93863.0,0.0796]
[1736486768611,0.17163385,93864.0,93863.0,0.0796]
[1736486768962,0.17063385,93864.0,93863.0,0.0796]
[1736486769194,0.16963385,93864.0,93863.0,0.0796]
[1736486769639,0.15,93864.0,93863.0,0.0796]
[1736486769849,0.45151818,93890.0,93867.0,0.0809]
[1736486770057,0.213022,93887.0,93869.0,0.0809]
[1736486770266,0.2131754,93895.0,93872.0,0.0463]
[1736486770476,0.2131754,93895.0,93864.0,0.3226]
[1736486770477,0.01862835,93888.0,93874.0,0.1272]
[1736486770685,0.15,93889.0,93875.0,0.0809]
[1736486771698,0.006,93888.0,93875.0,0.0809]
[1736486772077,0.003,93888.0,93875.0,0.0809]
[1736486772482,0.15,93892.0,93875.0,0.0809]
[1736486772892,0.003,93888.0,93875.0,0.0809]
[1736486773310,0.002,93888.0,93875.0,0.0809]
[1736486775549,0.003,93888.0,93875.0,0.0809]
[1736486775942,0.002,93888.0,93875.0,0.0809]
[1736486776154,0.213019,93889.0,93875.0,0.0809]
[1736486776574,0.15,93886.0,93875.0,0.0809]
[1736486777755,0.151,93888.0,93875.0,0.0809]
[1736486778360,0.15,93886.0,93875.0,0.0809]
[1736486779197,0.15,93886.0,93876.0,0.0497]
[1736486779399,0.15,93889.0,93877.0,0.075]
[1736486779781,0.213019,93888.0,93877.0,0.075]
[1736486780969,0.15,93889.0,93877.0,0.075]
[1736486781607,0.213019,93888.0,93877.0,0.075]
[1736486781808,0.12146411,93889.0,93877.0,0.075]
[1736486782765,0.213019,93888.0,93877.0,0.075]
[1736486784007,0.15,93887.0,93877.0,0.075]
[1736486784259,0.15,93885.0,93877.0,0.075]
[1736486785618,0.151,93885.0,93877.0,0.075]
[1736486787911,0.001,93885.0,93877.0,0.075]
[1736486788123,0.001,93885.0,93872.0,0.213054]
[1736486788124,0.001,93885.0,93879.0,0.0814]
[1736486788304,0.01749415,93885.0,93881.0,0.0814]
[1736486788531,0.001,93885.0,93881.0,0.0814]
[1736486788754,0.15,93891.0,93881.0,0.0814]
[1736486788974,0.213015,93890.0,93881.0,0.0814]
[1736486789246,0.213015,93890.0,93877.0,0.001]
[1736486789247,0.363042,93878.0,93877.0,0.002]
[1736486789448,0.213056,93872.0,93871.0,0.0467]
[1736486789668,0.363056,93872.0,93871.0,0.0467]
[1736486789888,0.363074,93864.0,93863.0,0.0469]
[1736486791571,0.15,93864.0,93863.0,0.0469]
[1736486791799,0.151,93864.0,93863.0,0.0469]
[1736486792006,0.16756985,93864.0,93863.0,0.0469]
[1736486793512,0.151,93864.0,93863.0,0.1386375]
[1736486793638,0.001,93864.0,93863.0,0.1258]
[1736486793845,0.01660039,93877.0,93864.0,0.1275]
[1736486794083,0.213026,93886.0,93872.0,0.0486]
[1736486794302,0.15,93885.0,93872.0,0.0486]
[1736486794475,0.15,93885.0,93873.0,0.0340558]
[1736486795274,0.213016,93890.0,93873.0,0.0340558]
[1736486795275,0.213019,93888.0,93873.0,0.0340558]
[1736486795473,0.004,93885.0,93873.0,0.0340558]
[1736486795881,0.154,93885.0,93873.0,0.0340558]
[1736486796080,0.154,93885.0,93872.0,0.0486]
[1736486797124,0.156,93885.0,93872.0,0.0486]
[1736486797536,0.15,93883.0,93872.0,0.0486]
[1736486798786,0.15,93888.0,93872.0,0.0486]
[1736486798958,0.15,93886.0,93872.0,0.0506]
[1736486799649,0.15,93886.0,93872.0,0.0496]
[1736486799851,0.15,93888.0,93872.0,0.0496]
[1736486800033,0.15,93886.0,93872.0,0.0496]
[1736486801358,0.15,93886.0,93872.0,0.0486]
[1736486805210,0.01534696,93890.0,93873.0,0.01392173]
[1736486805414,0.0001706,93903.0,93881.0,0.213035]
[1736486805617,0.0158503,93895.0,93883.0,0.0493]
[1736486805817,0.0001704,93895.0,93883.0,0.0493]
[1736486806023,0.0001704,93895.0,93884.0,0.293628]
[1736486806247,0.0001704,93895.0,93886.0,0.0806]
[1736486806957,0.0011704,93895.0,93886.0,0.0806]
[1736486807135,0.0001704,93895.0,93886.0,0.0806]
[1736486807335,0.0011704,93895.0,93886.0,0.0806]
[1736486807559,0.001,93890.0,93886.0,0.0806]
[1736486807917,0.01656503,93895.0,93886.0,0.0806]
[1736486809712,0.01556503,93895.0,93886.0,0.0806]
[1736486810101,0.01556503,93895.0,93886.0,0.0816]
[1736486810242,0.01556503,93895.0,93886.0,0.0806]
[1736486810791,0.01656503,93895.0,93886.0,0.0806]
[1736486813691,0.01656503,93895.0,93886.0,0.1148938]
[1736486817618,0.01556503,93895.0,93886.0,0.1148938]
[1736486817874,0.01556503,93895.0,93886.0,0.1158938]
[1736486818430,0.01556503,93895.0,93886.0,0.1168938]
[1736486819722,0.01556503,93895.0,93886.0,0.0826]
[1736486820693,0.01556503,93895.0,93887.0,0.213022]
[1736486820892,0.01556503,93895.0,93888.0,0.42710298]
[1736486821114,0.01556503,93895.0,93886.0,0.002]
[1736486821115,0.01556503,93895.0,93890.0,0.0495]
[1736486821486,0.00026406,93895.0,93892.0,0.21301]
[1736486821810,0.00026406,93895.0,93894.0,0.213006]
[1736486822077,0.00026406,93895.0,93894.0,0.295806]
[1736486822812,0.00026406,93895.0,93894.0,0.0828]
[1736486824699,0.00026406,93895.0,93894.0,0.0838]
[1736486826090,0.00026406,93895.0,93894.0,0.0848]
[1736486835746,0.00026406,93895.0,93894.0,0.23916468]
[1736486835952,0.00026406,93895.0,93894.0,0.23809976]
[1736486836101,0.00026406,93895.0,93894.0,0.34239952]
[1736486836510,0.00026406,93895.0,93894.0,0.23809976]
[1736486836913,0.00026406,93895.0,93894.0,0.23709976]
[1736486837355,0.00026406,93895.0,93894.0,0.24309976]
[1736486837575,0.00026406,93895.0,93894.0,0.24409976]
[1736486838120,0.00026406,93895.0,93894.0,0.24309976]
[1736486838345,0.00026406,93895.0,93894.0,0.35039952]
[1736486838749,0.00026406,93895.0,93894.0,0.34339952]
[1736486838950,0.00026406,93895.0,93894.0,0.34039952]
[1736486839088,0.00026406,93895.0,93894.0,0.34439952]
[1736486840153,0.00026406,93895.0,93894.0,0.35139952]
[1736486840493,0.00026406,93895.0,93894.0,0.34439952]
[1736486840696,0.00026406,93895.0,93894.0,0.35339952]
[1736486840902,0.00026406,93895.0,93894.0,0.67599952]
[1736486841317,0.00026406,93895.0,93894.0,0.57169976]
[1736486854055,0.00026406,93895.0,93894.0,1.16709976]
[1736486854260,0.00026406,93895.0,93894.0,1.26709976]
[1736486854894,6e-08,93895.0,93894.0,1.45034928]
[1736486859465,6e-08,93895.0,93894.0,1.35034928]
[1736486859672,6e-08,93895.0,93894.0,1.45034928]
[1736486860113,6e-08,93895.0,93894.0,1.55464904]
[1736486861793,0.15042534,93939.0,93909.0,0.425944]
[1736486861993,0.00048908,93926.0,93910.0,0.15146432]
[1736486862823,0.00048908,93926.0,93923.0,0.212938]
[1736486863177,0.02140791,93942.0,93923.0,0.212938]
[1736486863381,0.004,93939.0,93923.0,0.212938]
[1736486863582,0.003,93926.0,93923.0,0.212938]
[1736486863782,0.212903,93940.0,93923.0,0.212938]
[1736486864187,0.005,93926.0,93923.0,0.212938]
[1736486864390,0.002,93926.0,93923.0,0.212938]
[1736486864609,0.212903,93940.0,93923.0,0.212938]
[1736486864814,0.212903,93940.0,93923.0,0.214938]
[1736486865011,0.214903,93940.0,93923.0,0.214938]
[1736486866755,0.21292,93932.0,93923.0,0.002]
[1736486866993,0.212934,93926.0,93923.0,0.002]
[1736486867196,0.212934,93926.0,93912.0,0.3226]
[1736486868053,0.0188,93928.0,93912.0,0.3226]
[1736486868258,0.0244,93920.0,93895.0,0.3999]
[1736486868668,0.0244,93920.0,93912.0,0.002]
[1736486868882,0.212951,93918.0,93912.0,0.002]
[1736486869696,0.425903,93918.0,93912.0,0.003]
[1736486870074,0.212951,93918.0,93897.0,0.212999]
[1736486871094,0.426903,93918.0,93897.0,0.212999]
[1736486871301,0.15,93915.0,93897.0,0.212999]
[1736486873207,0.15,93915.0,93897.0,0.425998]
[1736486873434,0.15,93915.0,93902.0,0.212986]
[1736486873616,0.0158403,93918.0,93902.0,0.212986]
[1736486873845,0.0138403,93918.0,93905.0,0.0454]
[1736486873973,0.19117516,93940.0,93920.0,0.082]
[1736486874175,0.212904,93939.0,93920.0,0.082]
[1736486874595,0.01395915,93940.0,93921.0,0.212944]
[1736486874916,9.374e-05,93942.0,93926.0,0.212932]
[1736486875493,0.003,93939.0,93926.0,0.212932]
[1736486875630,9.374e-05,93942.0,93926.0,0.212932]
[1736486875836,0.01378479,93942.0,93926.0,0.212932]
[1736486876436,0.01378479,93942.0,93927.0,0.0507874]
[1736486876626,0.01378479,93942.0,93926.0,0.212932]
[1736486876827,0.002,93940.0,93927.0,0.212931]
[1736486877028,0.003,93940.0,93921.0,0.260144]
[1736486877244,0.002,93940.0,93931.0,0.21292]
[1736486877442,0.01478479,93942.0,93931.0,0.21292]
[1736486877680,0.01578479,93942.0,93931.0,0.21292]
[1736486877870,0.01478479,93942.0,93931.0,0.21292]
[1736486878272,0.01378479,93942.0,93931.0,0.21292]
[1736486878496,0.01378479,93942.0,93931.0,0.234212]
[1736486878646,0.01478479,93942.0,93931.0,0.234212]
[1736486879051,0.01478479,93942.0,93931.0,0.21292]
[1736486880772,0.01478479,93942.0,93931.0,0.425841]
[1736486880974,0.01578479,93942.0,93931.0,0.425841]
[1736486881797,0.01578479,93942.0,93933.0,0.212917]
[1736486882417,0.01578479,93942.0,93937.0,0.212906]
[1736486882646,0.01578479,93942.0,93938.0,0.0505821]
[1736486882823,0.00209374,93942.0,93938.0,0.0505821]
[1736486883053,0.00109374,93942.0,93937.0,0.212906]
[1736486883259,9.374e-05,93942.0,93937.0,0.212906]
[1736486883459,0.00109374,93942.0,93937.0,0.212906]
[1736486883938,0.00109374,93942.0,93937.0,0.425814]
[1736486884342,9.374e-05,93942.0,93937.0,0.425814]
[1736486884546,0.00209374,93942.0,93937.0,0.4763954]
[1736486885503,0.00209374,93942.0,93938.0,0.0468]
[1736486885705,0.00209374,93942.0,93939.0,0.425808]
[1736486886349,9.374e-05,93942.0,93939.0,0.425808]
[1736486886780,0.00209374,93942.0,93939.0,0.425808]
[1736486886980,0.00109374,93942.0,93941.0,0.212899]
[1736486887210,0.00109374,93942.0,93940.0,0.0805]
[1736486887593,0.00209374,93942.0,93940.0,0.0805]
[1736486888001,0.00109374,93942.0,93940.0,0.0805]
[1736486888922,9.374e-05,93942.0,93940.0,0.0805]
[1736486889333,0.00209374,93942.0,93940.0,0.0805]
[1736486889733,0.00109374,93942.0,93940.0,0.0805]